bitfinex/quotes_SOLUSD_20241005
["timestamp","ask_amount","ask_price","bid_price","bid_amount"]
[1728169332383,7.0043,142.77,142.74,50.0]
[1728169333483,7.0043,142.77,142.72,67.14293767]
[1728169333690,7.0043,142.77,142.74,50.0]
[1728169336003,7.0043,142.77,142.73,10.13633767]
[1728169336194,7.0043,142.77,142.74,30.0]
[1728169336395,20.0,142.78,142.74,30.0]
[1728169336580,24.027864,142.77,142.74,30.0]
[1728169338079,7.0052,142.75,142.74,30.0]
[1728169339117,7.0052,142.75,142.73,30.0]
[1728169340004,7.0052,142.75,142.72,50.0]
[1728169341499,0.12549,142.79,142.74,50.0]
[1728169341806,20.0,142.77,142.74,51.40088585]
[1728169344894,20.0,142.77,142.74,81.40088585]
[1728169345096,20.0,142.8,142.75,10.13633767]
[1728169345299,22.0526,142.81,142.74,81.40088585]
[1728169345300,10.20722021,142.83,142.76,61.53706893]
[1728169345499,7.0022,142.82,142.77,17.14013767]
[1728169346192,7.0022,142.82,142.77,47.14013767]
[1728169346391,7.0022,142.82,142.78,51.40055529]
[1728169346587,20.0,142.81,142.78,51.40055529]
[1728169347188,20.0,142.81,142.78,81.40055529]
[1728169347588,20.0,142.81,142.78,80.0]
[1728169348404,20.0,142.81,142.78,50.0]
[1728169348917,7.0022,142.82,142.78,60.13633767]
[1728169349414,27.67069483,142.87,142.8,60.13633767]
[1728169349415,10.17179483,142.87,142.8,60.13633767]
[1728169349614,7.0004,142.85,142.81,8.40240064]
[1728169349915,7.0004,142.85,142.81,1.40020064]
[1728169350291,20.0,142.84,142.81,1.40020064]
[1728169351100,20.0,142.86,142.81,1.40020064]
[1728169351405,20.0,142.83,142.81,1.40020064]
[1728169351717,7.0003,142.85,142.82,50.0]
[1728169352786,0.12549,142.86,142.82,61.53645238]
[1728169352991,21.3445,142.89,142.83,7.0012]
[1728169353192,6.9994,142.87,142.84,1.39996279]
[1728169353889,6.9994,142.87,142.84,31.39996279]
[1728169354108,6.9994,142.87,142.84,80.0]
[1728169354309,6.9994,142.87,142.84,50.0]
[1728169354511,6.9998,142.86,142.82,67.13803767]
[1728169356493,31.29962817,142.92,142.79,16.2737]
[1728169356494,44.027864,142.9,142.8,60.13633767]
[1728169356715,7.0013,142.83,142.8,50.0]
[1728169357294,7.0013,142.83,142.81,30.0]
[1728169357695,7.0013,142.83,142.8,50.0]
[1728169359603,7.0013,142.83,142.81,30.0]
[1728169363917,7.0018,142.82,142.81,30.0]
[1728169367324,7.0018,142.82,142.79,16.2737]
[1728169370319,7.0018,142.82,142.8,30.0]
[1728169370844,7.0018,142.82,142.8,80.0]
[1728169371738,20.25098,142.86,142.8,90.13633767]
[1728169371925,7.0012,142.84,142.81,10.13633767]
[1728169372123,7.0012,142.84,142.8,90.13633767]
[1728169372506,7.0012,142.84,142.8,60.13633767]
[1728169374308,20.25098,142.86,142.82,50.0]
[1728169374515,20.0,142.84,142.82,50.0]
[1728169375134,20.0,142.84,142.8,67.13903767]
[1728169375644,27.0008,142.84,142.81,30.0]
[1728169377518,27.0008,142.84,142.82,50.0]
[1728169377722,27.0008,142.84,142.82,80.0]
[1728169378737,20.25098,142.86,142.82,80.0]
[1728169378940,7.0006,142.85,142.82,80.0]
[1728169381434,24.027864,142.87,142.83,7.0008]
[1728169381617,31.027364,142.87,142.84,1.39999019]
[1728169382441,0.25098,142.87,142.84,8.40049019]
[1728169382751,27.25038,142.87,142.84,1.39999019]
[1728169383443,27.25038,142.87,142.84,31.39999019]
[1728169383737,6.9999,142.86,142.84,30.0]
[1728169393451,51.028164,142.85,142.84,30.0]
[1728169394441,7.002,142.82,142.79,16.2737]
[1728169394626,7.002,142.82,142.8,30.0]
[1728169397635,7.002,142.82,142.79,1.40046733]
[1728169398036,0.25098,142.84,142.8,60.13633767]
[1728169398236,7.25188,142.84,142.81,1.40025763]
[1728169398844,7.25188,142.84,142.8,60.13633767]
[1728169400256,7.25188,142.84,142.8,50.0]
[1728169401453,7.25188,142.84,142.81,1.40025998]
[1728169401753,7.25188,142.84,142.81,31.40025998]
[1728169405749,7.25188,142.84,142.81,30.0]
[1728169405946,7.25188,142.84,142.8,50.0]
[1728169406248,7.25188,142.84,142.8,51.40025301]
[1728169407938,7.25188,142.84,142.8,50.0]
[1728169408835,7.25188,142.84,142.81,30.0]
[1728169409350,0.12549,142.84,142.81,31.40025697]
[1728169409555,0.12549,142.84,142.81,1.40025697]
[1728169410748,0.12549,142.84,142.82,50.0]
[1728169411052,6.9998,142.86,142.82,57.0017]
[1728169411445,6.9998,142.86,142.83,1.40002165]
[1728169412547,6.9998,142.86,142.82,67.13803767]
[1728169413564,6.9998,142.86,142.83,30.0]
[1728169414258,6.9998,142.86,142.83,29.30825286]
[1728169414842,22.7074,142.9,142.83,29.30825286]
[1728169414843,44.027864,142.89,142.83,29.30825286]
[1728169415034,7.0,142.86,142.83,29.30825286]
[1728169416262,6.9993,142.87,142.83,36.30935286]
[1728169416566,0.25098,142.87,142.84,1.40002193]
[1728169417139,20.0,142.88,142.85,50.0]
[1728169417464,6.999,142.88,142.85,50.0]
[1728169417847,20.0,142.87,142.85,50.0]
[1728169421764,6.999,142.88,142.85,50.0]
[1728169422772,6.999,142.88,142.85,80.0]
[1728169423151,6.999,142.88,142.85,81.39981841]
[1728169426162,17.4939,142.91,142.85,51.39981841]
[1728169426363,6.9981,142.9,142.87,50.0]
[1728169426557,6.9981,142.9,142.85,67.13653767]
[1728169427054,6.9981,142.9,142.87,50.0]
[1728169429260,6.9981,142.9,142.87,80.0]
[1728169434276,20.0,142.91,142.87,80.0]
[1728169434460,0.25098,142.92,142.89,6.998]
[1728169434662,20.0,142.91,142.88,18.53457311]
[1728169435554,6.997,142.92,142.89,50.0]
[1728169435759,6.997,142.92,142.9,1.39943485]
[1728169439282,6.997,142.92,142.9,31.39943485]
[1728169440302,20.0,142.93,142.9,31.39943485]
[1728169440486,6.9964,142.93,142.9,30.0]
[1728169440965,6.996,142.94,142.9,36.9977]
[1728169441168,6.996,142.94,142.91,50.0]
[1728169441366,6.996,142.94,142.91,80.0]
[1728169441562,24.027864,142.96,142.92,1.39925944]
[1728169441563,6.9954,142.95,142.92,1.39925944]
[1728169442078,6.9954,142.95,142.92,11.53559711]
[1728169442283,6.995,142.96,142.93,50.0]
[1728169443398,6.995,142.96,142.93,80.0]
[1728169447371,6.9955,142.95,142.93,30.0]
[1728169447675,51.023764,142.94,142.93,30.0]
[1728169448073,6.9971,142.92,142.88,26.34963767]
[1728169448276,6.9971,142.92,142.89,30.0]
[1728169448480,6.9971,142.92,142.89,80.0]
[1728169449491,6.9979,142.9,142.89,30.0]
[1728169449694,7.24888,142.9,142.89,30.0]
[1728169450193,7.24888,142.9,142.87,50.0]
[1728169454595,6.9979,142.9,142.87,50.0]
[1728169454795,6.9979,142.9,142.87,51.39960638]
[1728169454998,6.9979,142.9,142.88,30.0]
[1728169456798,6.9975,142.91,142.88,30.0]
[1728169460203,6.9975,142.91,142.87,50.0]
[1728169464979,6.9975,142.91,142.88,30.0]
[1728169467701,6.9979,142.9,142.88,30.0]
[1728169471892,6.9979,142.9,142.87,50.0]
[1728169472405,6.9984,142.89,142.87,50.0]
[1728169481308,6.998,142.9,142.87,50.0]
[1728169485216,6.998,142.9,142.85,84.63683767]
[1728169485515,6.9985,142.89,142.86,30.0]
[1728169486598,6.9985,142.89,142.85,84.63683767]
[1728169490223,6.9974,142.91,142.87,6.9992]
[1728169490526,6.9979,142.9,142.86,6.9997]
[1728169493023,6.9969,142.92,142.88,50.0]
[1728169493224,21.9104,142.95,142.9,50.0]
[1728169493403,21.9104,142.95,142.91,1.39921596]
[1728169494021,28.9059,142.95,142.91,1.39921596]
[1728169494201,6.9955,142.95,142.92,50.0]
[1728169496098,6.9955,142.95,142.93,1.39917293]
[1728169496523,6.9955,142.95,142.92,50.0]
[1728169497316,6.9955,142.95,142.93,1.39911488]
[1728169497522,26.995,142.96,142.92,50.0]
[1728169498716,26.995,142.96,142.93,1.39907705]
[1728169499113,26.995,142.96,142.92,50.0]
[1728169504329,6.996,142.94,142.92,50.0]
[1728169505426,6.9964,142.93,142.92,50.0]
[1728169506129,6.9972,142.92,142.88,65.9201]
[1728169506313,6.9972,142.92,142.89,30.0]
[1728169506837,6.9972,142.92,142.88,50.0]
[1728169507013,6.9976,142.91,142.88,50.0]
[1728169507413,6.9976,142.91,142.89,1.39947356]
[1728169507620,6.997,142.92,142.88,50.0]
[1728169507928,6.997,142.92,142.9,50.0]
[1728169508330,6.997,142.92,142.86,17.4991]
[1728169508331,23.776884,142.94,142.86,50.0]
[1728169508638,6.9984,142.89,142.86,50.0]
[1728169512321,42.75468,142.93,142.86,50.0]
[1728169512647,6.9985,142.89,142.86,50.0]
[1728169513726,6.9989,142.88,142.85,15.9201]
[1728169513932,6.9989,142.88,142.84,50.0]
[1728169514130,6.9989,142.88,142.84,57.30836462]
[1728169514639,44.027864,142.91,142.84,57.30836462]
[1728169514824,6.9994,142.87,142.84,57.30836462]
[1728169515029,6.9994,142.87,142.84,50.0]
[1728169515828,6.9998,142.86,142.84,50.0]
[1728169516138,7.0004,142.85,142.82,50.0]
[1728169516339,7.0004,142.85,142.83,30.0]
[1728169516637,7.0004,142.85,142.82,50.0]
[1728169524941,7.0004,142.85,142.8,84.64563767]
[1728169525146,7.0004,142.85,142.8,74.5093]
[1728169533458,7.0004,142.85,142.8,81.82547599]
[1728169535345,43.902374,142.87,142.8,74.82287599]
[1728169535542,7.0018,142.83,142.8,7.31617599]
[1728169535743,7.0018,142.83,142.78,67.13973767]
[1728169535956,7.0018,142.83,142.79,30.0]
[1728169536541,7.0018,142.83,142.79,37.0032]
[1728169537061,7.0018,142.83,142.79,7.0032]
[1728169543948,7.0018,142.83,142.78,74.44689538]
[1728169544141,7.002,142.82,142.79,30.0]
[1728169544661,7.002,142.82,142.78,64.31055771]
[1728169546352,7.002,142.82,142.78,57.30685771]
[1728169548272,7.0023,142.81,142.78,57.30685771]
[1728169548675,7.0023,142.81,142.78,50.0]
[1728169559574,7.0031,142.8,142.78,50.0]
[1728169559769,7.0031,142.8,142.76,67.14093767]
[1728169560173,7.0031,142.8,142.76,74.44682336]
[1728169560674,7.0024,142.81,142.78,50.0]
[1728169567490,27.0014,142.83,142.8,50.0]
[1728169572181,27.0014,142.83,142.78,67.5088]
[1728169572182,7.25288,142.82,142.78,67.5088]
[1728169573886,7.25288,142.82,142.79,1.40045897]
[1728169574182,7.25288,142.82,142.78,67.5088]
[1728169574776,7.25288,142.82,142.78,68.90925903]
[1728169575802,7.25288,142.82,142.78,67.5088]
[1728169576486,7.0019,142.82,142.8,50.0]
[1728169576690,20.0,142.87,142.8,57.0027]
[1728169576888,20.0,142.84,142.81,7.0023]
[1728169577186,7.0004,142.85,142.81,7.0023]
[1728169577690,7.0004,142.85,142.8,60.13633767]
[1728169577908,7.0004,142.85,142.8,67.13893767]
[1728169580680,7.12519,142.87,142.82,60.13633767]
[1728169580885,28.6558,142.88,142.83,8.40110624]
[1728169581084,6.9994,142.87,142.83,8.40110624]
[1728169581789,6.9994,142.87,142.83,1.40000624]
[1728169582179,6.9994,142.87,142.82,84.64153767]
[1728169583979,7.12439,142.88,142.84,50.0]
[1728169584386,7.0004,142.85,142.82,67.5036]
[1728169584588,7.0004,142.85,142.83,30.0]
[1728169585082,7.0004,142.85,142.82,67.5036]
[1728169585294,7.0004,142.85,142.82,50.0]
[1728169599611,7.0004,142.85,142.8,57.0027]
[1728169600112,7.0004,142.85,142.81,30.0]
[1728169601410,7.0004,142.85,142.8,57.0027]
[1728169604419,7.0004,142.85,142.81,31.40015681]
[1728169604910,7.0004,142.85,142.81,1.40015681]
[1728169606312,7.0004,142.85,142.8,57.0027]
[1728169607114,6.9998,142.86,142.82,57.0018]
[1728169608908,22.5087,142.91,142.84,50.0]
[1728169609115,6.9989,142.88,142.84,50.0]
[1728169611093,6.9989,142.88,142.85,1.39984332]
[1728169612593,6.9989,142.88,142.84,50.0]
[1728169613515,6.9989,142.88,142.85,1.39983631]
[1728169617416,6.9989,142.88,142.84,50.0]
[1728169617718,44.027864,142.9,142.84,50.0]
[1728169618022,6.9994,142.87,142.84,50.0]
[1728169625717,7.0003,142.85,142.82,50.0]
[1728169626020,0.12549,142.86,142.82,50.0]
[1728169627013,7.0009,142.84,142.82,50.0]
[1728169628417,0.12549,142.85,142.8,50.0]
[1728169628627,7.0019,142.82,142.8,50.0]
[1728169629533,7.0014,142.83,142.8,50.0]
[1728169631216,7.0018,142.82,142.8,50.0]
[1728169631426,44.027864,142.86,142.8,50.0]
[1728169632338,7.0014,142.83,142.8,50.0]
[1728169634256,7.0014,142.83,142.78,74.5127]
[1728169635240,7.0019,142.82,142.78,74.5127]
[1728169635613,7.0023,142.81,142.78,50.0]
[1728169638545,0.12549,142.85,142.78,50.0]
[1728169638746,7.0019,142.82,142.78,50.0]
[1728169642352,0.25098,142.81,142.77,7.0041]
[1728169642652,7.0026,142.81,142.76,83.63583767]
[1728169643449,7.0026,142.81,142.77,30.0]
[1728169644237,7.0026,142.81,142.76,83.63583767]
[1728169645443,7.0028,142.8,142.76,83.63583767]
[1728169647152,7.0028,142.8,142.77,30.0]
[1728169649150,7.0037,142.78,142.77,30.0]
[1728169649368,20.25098,142.8,142.73,50.0]
[1728169649650,7.0054,142.75,142.74,30.0]
[1728169649957,7.0048,142.76,142.73,50.0]
[1728169650334,7.0048,142.76,142.71,57.007]
[1728169650641,7.0052,142.75,142.72,30.0]
[1728169650959,0.12549,142.74,142.72,30.0]
[1728169651161,7.13129,142.74,142.72,30.0]
[1728169651455,7.0063,142.73,142.69,57.008]
[1728169651643,7.0063,142.73,142.7,30.0]
[1728169652333,0.12549,142.74,142.7,30.0]
[1728169652633,7.13129,142.74,142.69,7.008]
[1728169658244,23.902374,142.73,142.69,7.008]
[1728169658565,7.0062,142.73,142.69,7.008]
[1728169662869,0.25098,142.72,142.68,57.31944025]
[1728169663372,0.25098,142.72,142.68,64.32794025]
[1728169666258,7.25768,142.72,142.68,64.32794025]
[1728169666461,7.25768,142.72,142.68,57.0085]
[1728169666979,7.0072,142.71,142.68,50.0]
[1728169667868,20.25098,142.72,142.68,50.0]
[1728169668171,27.25778,142.72,142.68,57.0086]
[1728169674576,20.25098,142.72,142.68,50.0]
[1728169674765,7.0073,142.71,142.68,50.0]
[1728169675451,27.25778,142.72,142.68,50.0]
[1728169681995,27.25778,142.72,142.68,51.40148919]
[1728169682478,27.25778,142.72,142.68,50.0]
[1728169688678,27.25778,142.72,142.66,10.13633767]
[1728169688679,0.25098,142.7,142.66,57.0096]
[1728169688981,0.25098,142.7,142.67,7.30756233]
[1728169688982,7.0082,142.69,142.67,7.30756233]
[1728169689287,27.25878,142.7,142.67,7.30756233]
[1728169691190,27.25878,142.7,142.66,57.0096]
[1728169691191,0.25098,142.68,142.65,7.0101]
[1728169691395,0.25098,142.68,142.65,8.41190064]
[1728169691569,0.25098,142.68,142.65,7.0101]
[1728169693788,0.25098,142.68,142.64,81.84229065]
[1728169700283,20.25098,142.68,142.64,81.84229065]
[1728169700792,7.0093,142.67,142.64,7.30589065]
[1728169700975,7.0093,142.67,142.63,7.011]
[1728169707583,23.776884,142.67,142.62,58.14264212]
[1728169707771,7.0102,142.65,142.62,50.8409633]
[1728169708586,7.0096,142.67,142.62,57.8521633]
[1728169708782,7.0096,142.67,142.62,67.98850097]
[1728169709397,7.0096,142.67,142.62,57.8521633]
[1728169709873,7.0096,142.67,142.62,67.98850097]
[1728169715700,20.12549,142.68,142.64,50.0]
[1728169715896,0.12549,142.67,142.64,57.0106]
[1728169717807,20.0,142.68,142.65,7.0101]
[1728169720203,7.0067,142.72,142.67,50.0]
[1728169720401,7.0067,142.72,142.68,8.41008891]
[1728169720607,22.2228,142.73,142.69,50.0]
[1728169720783,22.2228,142.73,142.69,57.0081]
[1728169721493,22.2228,142.73,142.69,7.0081]
[1728169721694,29.2291,142.73,142.68,17.14483767]
[1728169721880,29.2291,142.73,142.68,7.0085]
[1728169722779,20.0,142.72,142.68,7.0085]
[1728169723808,20.0,142.72,142.69,50.0]
[1728169729687,20.0,142.72,142.68,7.0085]
[1728169732212,27.0067,142.72,142.68,7.0085]
[1728169735994,27.0067,142.72,142.69,50.0]
[1728169739718,20.0,142.77,142.71,50.0]
[1728169739899,22.5043,142.78,142.72,7.0066]
[1728169741193,7.0048,142.76,142.72,7.0066]
[1728169741394,7.0048,142.76,142.72,8.40766525]
[1728169741613,20.0,142.75,142.72,7.0066]
[1728169742008,7.0048,142.76,142.72,7.0066]
[1728169743195,7.0048,142.76,142.72,8.40764976]
[1728169744126,7.0048,142.76,142.72,7.0066]
[1728169744814,7.0048,142.76,142.71,60.13633767]
[1728169745117,7.0048,142.76,142.71,67.14333767]
[1728169750593,0.12549,142.77,142.71,60.13633767]
[1728169750798,27.25528,142.77,142.72,24.5228]
[1728169751118,7.0049,142.76,142.72,17.5162]
[1728169757036,7.0049,142.76,142.73,50.0]
[1728169789648,9.40623928,142.82,142.75,50.0]
[1728169789849,7.0017,142.83,142.77,50.0]
[1728169790054,7.0017,142.83,142.79,50.0]
[1728169790250,7.0018,142.82,142.79,50.0]
[1728169790464,7.0023,142.81,142.77,84.65093767]
[1728169790758,7.0023,142.81,142.77,74.5146]
[1728169791455,0.12549,142.82,142.75,50.0]
[1728169791659,7.0037,142.78,142.75,50.0]
[1728169792549,20.0,142.82,142.75,50.0]
[1728169792752,7.0033,142.79,142.75,50.0]
[1728169793251,7.0033,142.79,142.75,60.13633767]
[1728169798675,7.12959,142.78,142.75,1.40069255]
[1728169798873,7.0047,142.77,142.73,66.1466]
[1728169799049,7.0047,142.77,142.74,30.0]
[1728169800551,7.0047,142.77,142.73,66.1466]
[1728169801154,7.0047,142.77,142.74,1.4009472]
[1728169801573,7.0047,142.77,142.73,66.1466]
[1728169809479,7.0047,142.77,142.73,50.0]
[1728169811766,20.0,142.78,142.71,50.0]
[1728169811960,7.0057,142.74,142.69,82.97083767]
[1728169812381,0.12549,142.77,142.69,90.26586752]
[1728169812382,24.027864,142.77,142.69,90.26586752]
[1728169812598,7.0062,142.73,142.69,90.26586752]
[1728169813289,7.0062,142.73,142.7,30.0]
[1728169814398,20.25098,142.72,142.69,7.29502985]
[1728169814570,44.027864,142.7,142.64,50.0]
[1728169814768,0.25098,142.68,142.64,50.0]
[1728169815086,7.0095,142.67,142.63,10.13633767]
[1728169815297,0.25098,142.68,142.65,30.0]
[1728169815498,7.26058,142.66,142.65,30.0]
[1728169815789,7.13509,142.66,142.63,1.40205405]
[1728169815968,7.13509,142.66,142.62,50.8409633]
[1728169816471,7.13509,142.66,142.63,1.40198949]
[1728169816783,7.13509,142.66,142.62,50.8409633]
[1728169821569,7.13509,142.66,142.62,52.24297077]
[1728169821784,7.13509,142.66,142.62,60.97730097]
[1728169822293,7.13509,142.66,142.62,62.37930831]
[1728169822495,7.13509,142.66,142.62,60.97730097]
[1728169824770,7.0096,142.66,142.62,60.97730097]
[1728169824968,7.0096,142.66,142.62,67.98880097]
[1728169827505,7.0096,142.66,142.62,57.8524633]
[1728169828994,0.12549,142.65,142.62,0.8409633]
[1728169829201,20.25098,142.65,142.62,0.8409633]
[1728169829500,27.13659,142.63,142.62,0.8409633]
[1728169830586,20.0,142.63,142.62,0.8409633]
[1728169844718,24.027864,142.68,142.63,50.0]
[1728169845012,7.0098,142.66,142.63,50.0]
[1728169846016,20.0,142.65,142.63,50.0]
[1728169851200,7.0092,142.67,142.64,1.40202247]
[1728169851525,20.0,142.66,142.63,57.0111]
[1728169852225,20.0,142.66,142.63,50.0]
[1728169855217,20.0,142.65,142.63,50.0]
[1728169866815,7.0092,142.67,142.62,17.98880097]
[1728169866816,20.0,142.66,142.65,50.0]
[1728169877032,20.0,142.67,142.65,60.13633767]
[1728169877349,38.6361,142.73,142.67,50.0]
[1728169877652,7.008,142.7,142.68,1.40154804]
[1728169878527,20.25098,142.69,142.62,50.8409633]
[1728169879032,20.25098,142.69,142.62,60.97730097]
[1728169879629,7.0105,142.65,142.62,50.8409633]
[1728169908869,20.0,142.66,142.62,57.8524633]
[1728169910144,7.01,142.66,142.62,50.8409633]
[1728169933672,20.0,142.68,142.64,57.0106]
[1728169933864,27.0089,142.68,142.64,57.0106]
[1728169934174,27.0089,142.68,142.64,50.0]
[1728169934573,20.0,142.66,142.63,24.5383]
[1728169938189,0.25098,142.67,142.63,17.5274]
[1728169938376,7.0097,142.66,142.63,17.5274]
[1728169943759,7.0071,142.72,142.67,7.0091]
[1728169943965,22.3968,142.74,142.66,67.14583767]
[1728169945089,20.0,142.69,142.66,57.0095]
[1728169945286,20.0,142.69,142.65,34.67123767]
[1728169945480,7.0083,142.69,142.65,24.5349]
[1728169946378,24.027864,142.72,142.66,50.0]
[1728169946587,7.0077,142.7,142.66,50.0]
[1728169947284,7.25808,142.72,142.67,8.41067727]
[1728169947868,27.0072,142.71,142.67,8.41067727]
[1728169948080,20.25098,142.72,142.66,60.13633767]
[1728169948285,7.0077,142.7,142.66,17.14583767]
[1728169948470,7.0077,142.7,142.66,67.14583767]
[1728169948891,27.25808,142.72,142.67,7.0088]
[1728169949065,7.0073,142.71,142.67,7.0088]
[1728169950289,7.0073,142.71,142.66,67.14583767]
[1728169950473,27.25768,142.72,142.67,7.0091]
[1728169950791,7.0073,142.71,142.67,7.0091]
[1728169951195,7.0073,142.71,142.66,67.14593767]
[1728169951490,7.0073,142.71,142.68,50.0]
[1728169951806,7.0073,142.71,142.66,57.0096]
[1728169952885,20.0,142.76,142.69,10.13633767]
[1728169953096,7.0063,142.73,142.69,18.54578659]
[1728169953270,7.0063,142.73,142.69,18.5458004]
[1728169954381,7.0063,142.73,142.69,18.54579651]
[1728169955693,7.0063,142.73,142.69,17.14443767]
[1728169955997,7.0063,142.73,142.69,18.54580661]
[1728169956477,39.7383,142.78,142.69,18.54580661]
[1728169956678,20.0,142.73,142.69,67.14443767]
[1728169956880,27.0062,142.73,142.69,67.14443767]
[1728169963184,20.0,142.73,142.71,50.0]
[1728169964084,7.0058,142.74,142.71,50.0]
[1728169966580,7.0058,142.74,142.71,51.40119985]
[1728169967978,7.0058,142.74,142.71,50.0]
[1728169970713,20.0,142.75,142.71,50.0]
[1728169971012,7.0059,142.74,142.71,50.0]
[1728169971703,7.0059,142.74,142.71,51.40121843]
[1728169973115,7.0059,142.74,142.71,51.40120059]
[1728169973418,7.0053,142.75,142.73,50.0]
[1728169974010,0.12549,142.77,142.73,50.0]
[1728169974208,7.0043,142.77,142.73,50.0]
[1728169975197,7.0048,142.76,142.73,50.0]
[1728169977714,7.0041,142.78,142.73,67.14223767]
[1728169977917,20.0,142.77,142.73,67.14223767]
[1728169978616,20.0,142.79,142.73,67.14223767]
[1728169978818,7.0043,142.77,142.73,67.14223767]
[1728169979614,7.0043,142.77,142.73,57.0059]
[1728169979917,7.0043,142.77,142.73,50.0]
[1728169980520,7.0053,142.75,142.71,75.20813767]
[1728169981019,7.0053,142.75,142.71,65.0718]
[1728169983113,7.0053,142.75,142.71,75.20813767]
[1728169983321,7.0053,142.75,142.73,50.0]
[1728169993332,7.0049,142.76,142.73,50.0]
[1728169993717,7.0057,142.74,142.73,50.0]
[1728169994107,24.027864,142.78,142.73,50.0]
[1728169994306,7.0053,142.75,142.73,50.0]
[1728169994621,7.0053,142.75,142.7,17.14363767]
[1728169994622,7.0062,142.73,142.7,50.0]
[1728169997428,20.12549,142.77,142.7,50.0]
[1728169997631,7.0058,142.74,142.7,50.0]
[1728170004841,27.0063,142.73,142.7,50.0]
[1728170005019,7.0073,142.71,142.66,60.13633767]
[1728170005212,22.2738,142.75,142.64,35.0523]
[1728170005213,7.0091,142.68,142.64,50.0]
[1728170005439,7.0091,142.68,142.66,7.28266093]
[1728170005634,7.0091,142.68,142.65,30.0]
[1728170006319,7.0091,142.68,142.64,50.0]
[1728170010937,7.0091,142.68,142.66,50.0]
[1728170011438,7.0082,142.69,142.66,50.0]
[1728170020650,20.0,142.69,142.66,50.0]
[1728170023632,20.0,142.7,142.68,50.0]
[1728170025453,20.0,142.69,142.68,50.0]
[1728170029639,7.0073,142.71,142.68,50.0]
[1728170030954,23.902374,142.74,142.68,50.0]
[1728170031258,23.902374,142.74,142.68,57.0086]
[1728170031259,7.0068,142.72,142.68,57.0086]
[1728170031434,7.0068,142.72,142.68,58.41003292]
[1728170031829,20.0,142.71,142.68,58.41003292]
[1728170032135,20.0,142.71,142.68,51.40143292]
[1728170032340,20.0,142.71,142.68,50.0]
[1728170034459,0.12549,142.73,142.69,18.54587007]
[1728170034638,20.0,142.72,142.69,18.54587007]
[1728170034833,20.0,142.72,142.69,7.0081]
[1728170035040,20.0,142.72,142.69,17.14443767]
[1728170035351,20.0,142.72,142.69,10.13633767]
[1728170037134,20.0,142.72,142.7,50.0]
[1728170037337,7.0063,142.73,142.7,50.0]
[1728170041951,7.0063,142.73,142.7,51.40126788]
[1728170042462,7.0063,142.73,142.7,50.0]
[1728170055975,7.0063,142.73,142.7,60.13633767]
[1728170057880,20.0,142.75,142.72,50.0]
[1728170058181,7.0054,142.75,142.72,50.0]
[1728170058479,20.0,142.74,142.72,50.0]
[1728170058686,7.0054,142.75,142.72,50.0]
[1728170063855,7.0062,142.74,142.72,50.0]
[1728170076578,7.0053,142.75,142.72,50.0]
[1728170080970,7.0048,142.76,142.74,50.0]
[1728170081285,7.0046,142.77,142.74,50.0]
[1728170087505,20.0,142.8,142.74,50.0]
[1728170087698,7.0052,142.75,142.74,50.0]
[1728170095499,37.5076,142.8,142.74,50.0]
[1728170095708,7.0048,142.76,142.74,50.0]